fUST/lending_fUST_20250829
["ID","MTS","AMOUNT","RATE_DAILY","PERIOD"]
[381945420,1756433448844,-414.7,0.0005041,120]
[381945421,1756433448853,-399.07,0.0005041,120]
[381945422,1756433448862,-480.0,0.0005041,120]
[381945423,1756433448873,-480.0,0.0005041,120]
[381945424,1756433448883,-480.0,0.0005041,120]
[381945425,1756433448892,-480.0,0.0005041,120]
[381945426,1756433448901,-480.0,0.0005041,120]
[381945427,1756433448910,-546.39,0.0005041,120]
[381945428,1756433448919,-480.0,0.0005041,120]
[381945429,1756433448929,-239.24257719,0.0005041,120]
[381945430,1756433448939,-480.0,0.0005041,21]
[381945431,1756433448948,-480.0,0.0005041,120]
[381945432,1756433448958,-480.0,0.0005041,120]
[381945433,1756433448968,-2301.77,0.0005041,120]
[381945434,1756433448977,-480.0,0.0005041,120]
[381945435,1756433448987,-480.0,0.0005041,120]
[381945436,1756433448998,-480.0,0.0005041,120]
[381945437,1756433449008,-480.0,0.0005041,120]
[381945438,1756433449018,-825.86,0.0005041,3]
[381945439,1756433449028,-555.66,0.0005041,120]
[381945440,1756433449038,-500.26,0.0005041,120]
[381945441,1756433449047,-2397.68,0.0005041,120]
[381945442,1756433449056,-480.0,0.0005041,120]
[381945443,1756433449066,-480.0,0.0005041,120]
[381945444,1756433449075,-480.0,0.0005041,120]
[381945445,1756433449085,-835.71,0.0005041,120]
[381945446,1756433449094,-1469.81,0.0005041,120]
[381945447,1756433449104,-480.0,0.0005041,120]
[381945448,1756433449113,-480.0,0.0005041,120]
[381945449,1756433449122,-480.0,0.0005041,120]
[381945450,1756433449133,-431.05052201,0.0005041,120]
[381945451,1756433449142,-480.0,0.0005041,120]
[381945452,1756433449152,-480.0,0.0005041,120]
[381945453,1756433449162,-480.0,0.0005041,120]
[381945454,1756433449173,-2000.0,0.000505,120]
[381945455,1756433449183,-480.0,0.00050684,120]
[381945456,1756433449193,-169.02117665,0.00050684,120]
[381945457,1756433449203,-474.43,0.00050684,120]
[381945458,1756433449212,-480.0,0.00050684,120]
[381945459,1756433449222,-480.0,0.00050684,120]
[381945460,1756433449231,-217.32,0.00050684,120]
[381945461,1756433449241,-480.0,0.00050684,21]
[381945462,1756433449251,-480.0,0.00050684,120]
[381945463,1756433449260,-529.36,0.00050684,120]
[381945464,1756433449270,-2301.77,0.00050684,120]
[381945465,1756433449279,-480.0,0.00050684,120]
[381945466,1756433449289,-581.12,0.00050684,120]
[381945467,1756433449298,-480.0,0.00050684,120]
[381945468,1756433449308,-480.0,0.00050684,120]
[381945469,1756433449317,-825.86,0.00050684,3]
[381945470,1756433449327,-2397.68,0.00050684,120]
[381945471,1756433449336,-480.0,0.00050684,120]
[381945472,1756433449346,-480.0,0.00050684,120]
[381945473,1756433449355,-480.0,0.00050684,120]
[381945474,1756433449365,-835.71,0.00050684,120]
[381945475,1756433449374,-1469.81,0.00050684,120]
[381945476,1756433449383,-480.0,0.00050684,120]
[381945477,1756433449393,-480.0,0.00050684,120]
[381945478,1756433449402,-480.0,0.00050684,120]
[381945479,1756433449411,-480.0,0.00050684,120]
[381945480,1756433449421,-480.0,0.00050684,120]
[381945481,1756433449431,-480.0,0.00050684,120]
[381945482,1756433449440,-161.750993,0.00050685,2]
[381945483,1756433449449,-410.05,0.00050958,120]
[381945484,1756433449459,-480.0,0.00050958,120]
[381945485,1756433449468,-480.0,0.00050958,120]
[381945486,1756433449477,-480.0,0.00050958,21]
[381945487,1756433449487,-480.0,0.00050958,120]
[381945488,1756433449497,-2301.77,0.00050958,120]
[381945489,1756433449506,-480.0,0.00050958,120]
[381945490,1756433449516,-480.0,0.00050958,120]
[381945491,1756433449525,-480.0,0.00050958,120]
[381945492,1756433449535,-825.86,0.00050958,3]
[381945493,1756433449544,-500.26345234,0.00050958,120]
[381945494,1756433449553,-2397.68,0.00050958,120]
[381945495,1756433449563,-480.0,0.00050958,120]
[381945496,1756433449572,-480.0,0.00050958,120]
[381945497,1756433449582,-480.0,0.00050958,120]
[381945498,1756433449592,-835.71,0.00050958,120]
[381945499,1756433449601,-1469.81,0.00050958,120]
[381945500,1756433449610,-480.0,0.00050958,120]
[381945501,1756433449620,-480.0,0.00050958,120]
[381945502,1756433449629,-480.0,0.00050958,120]
[381945503,1756433449638,-480.0,0.00050958,120]
[381945504,1756433449647,-480.0,0.00050958,120]
[381945505,1756433449659,-480.0,0.00050958,120]
[381945506,1756433449668,-1000.0,0.00051,120]
[381945507,1756433449678,-3000.0,0.00051,85]
[381945508,1756433449687,-153.0,0.00051,120]
[381945509,1756433449697,-3000.0,0.0005101,85]
[381945510,1756433449709,-3000.0,0.0005102,85]
[381945511,1756433449742,-3000.0,0.0005103,85]
[381945512,1756433449753,-3000.0,0.0005104,85]
[381945513,1756433449762,-3000.0,0.0005105,85]
[381945514,1756433449773,-3000.0,0.0005106,85]
[381945515,1756433449782,-3000.0,0.0005107,85]
[381945516,1756433449791,-3162.427821,0.0005108,85]
[381945517,1756433449802,-1116.75451227,0.00051174,58]
[381945518,1756433449811,-302.6539,0.000512,120]
[381945519,1756433449820,-480.0,0.00051232,120]
[381945520,1756433449829,-480.0,0.00051232,120]
[381945521,1756433449838,-480.0,0.00051232,21]
[381945522,1756433449847,-480.0,0.00051232,120]
[381945523,1756433449856,-2301.77,0.00051232,120]
[381945524,1756433449865,-480.0,0.00051232,120]
[381945525,1756433449875,-501.87,0.00051232,120]
[381945526,1756433449884,-480.0,0.00051232,120]
[381945527,1756433449893,-825.86,0.00051232,3]
[381945528,1756433449903,-2397.68,0.00051232,120]
[381945529,1756433449912,-480.0,0.00051232,120]
[381945530,1756433449921,-480.0,0.00051232,120]
[381945531,1756433449931,-480.0,0.00051232,120]
[381945532,1756433449940,-835.71,0.00051232,120]
[381945533,1756433449949,-1469.81,0.00051232,120]
[381945534,1756433449958,-480.0,0.00051232,120]
[381945535,1756433449968,-480.0,0.00051232,120]
[381945536,1756433449977,-480.0,0.00051232,120]
[381945537,1756433449986,-480.0,0.00051232,120]
[381945538,1756433449995,-480.0,0.00051232,120]
[381945539,1756433450005,-480.0,0.00051232,120]
[381945540,1756433450014,-5000.0,0.000515,120]
[381945541,1756433450023,-480.0,0.00051506,120]
[381945542,1756433450032,-522.20967919,0.00051506,120]
[381945543,1756433450042,-480.0,0.00051506,21]
[381945544,1756433450051,-480.0,0.00051506,120]
[381945545,1756433450060,-2301.77,0.00051506,120]
[381945546,1756433450070,-480.0,0.00051506,120]
[381945547,1756433450079,-480.0,0.00051506,120]
[381945548,1756433450088,-825.86,0.00051506,3]
[381945549,1756433450098,-2397.68,0.00051506,120]
[381945550,1756433450107,-197.13,0.00051506,120]
[381945551,1756433450116,-480.0,0.00051506,120]
[381945552,1756433450125,-480.0,0.00051506,120]
[381945553,1756433450135,-835.71,0.00051506,120]
[381945554,1756433450143,-1469.81,0.00051506,120]
[381945555,1756433450152,-480.0,0.00051506,120]
[381945556,1756433450162,-480.0,0.00051506,120]
[381945557,1756433450171,-480.0,0.00051506,120]
[381945558,1756433450180,-480.0,0.00051506,120]
[381945559,1756433450190,-480.0,0.00051506,120]
[381945560,1756433450199,-480.0,0.00051506,120]
[381945561,1756433450208,-155.238896,0.0005175,60]
[381945562,1756433450217,-153.370832,0.0005175,60]
[381945563,1756433450226,-480.0,0.0005178,120]
[381945564,1756433450235,-480.0,0.0005178,21]
[381945565,1756433450245,-480.0,0.0005178,120]
[381945566,1756433450256,-2301.77,0.0005178,120]
[381945567,1756433450266,-480.0,0.0005178,120]
[381945568,1756433450275,-480.0,0.0005178,120]
[381945569,1756433450285,-825.86,0.0005178,3]
[381945570,1756433450294,-2397.68,0.0005178,120]
[381945571,1756433450303,-480.0,0.0005178,120]
[381945572,1756433450313,-480.0,0.0005178,120]
[381945573,1756433450322,-835.71,0.0005178,120]
[381945574,1756433450332,-1469.81,0.0005178,120]
[381945575,1756433450342,-480.0,0.0005178,120]
[381945576,1756433450351,-480.0,0.0005178,120]
[381945577,1756433450360,-480.0,0.0005178,120]
[381945578,1756433450369,-480.0,0.0005178,120]
[381945579,1756433450379,-480.0,0.0005178,120]
[381945580,1756433450388,-480.0,0.0005178,120]
[381945581,1756433450398,-1000.0,0.00052,120]
[381945582,1756433450407,-480.0,0.00052054,120]
[381945583,1756433450416,-480.0,0.00052054,21]
[381945584,1756433450426,-480.0,0.00052054,120]
[381945585,1756433450436,-2301.77,0.00052054,120]
[381945586,1756433450446,-480.0,0.00052054,120]
[381945587,1756433450456,-480.0,0.00052054,120]
[381945588,1756433450465,-825.86,0.00052054,3]
[381945589,1756433450475,-2397.68,0.00052054,120]
[381945590,1756433450485,-480.0,0.00052054,120]
[381945591,1756433450494,-480.0,0.00052054,120]
[381945592,1756433450504,-835.71,0.00052054,120]
[381945593,1756433450513,-1469.81,0.00052054,120]
[381945594,1756433450523,-262.18890397,0.00052054,120]
[381945595,1756433450532,-403.23,0.00052054,120]
[381945596,1756433450542,-480.0,0.00052054,120]
[381945597,1756433450551,-480.0,0.00052054,120]
[381945598,1756433450560,-480.0,0.00052054,120]
[381945599,1756433450570,-480.0,0.00052054,120]
[381945600,1756433450579,-524.29,0.00052328,120]
[381945601,1756433450589,-480.0,0.00052328,21]
[381945602,1756433450598,-480.0,0.00052328,120]
[381945603,1756433450609,-2301.77,0.00052328,120]
[381945604,1756433450619,-480.0,0.00052328,120]
[381945605,1756433450628,-312.39,0.00052328,120]
[381945606,1756433450638,-825.86,0.00052328,3]
[381945607,1756433450648,-2397.68,0.00052328,120]
[381945608,1756433450660,-480.0,0.00052328,120]
[381945609,1756433450674,-480.0,0.00052328,120]
[381945610,1756433450689,-835.71,0.00052328,120]
[381945611,1756433450700,-1469.81,0.00052328,120]
[381945612,1756433450710,-480.0,0.00052328,120]
[381945613,1756433450723,-480.0,0.00052328,120]
[381945614,1756433450732,-480.0,0.00052328,120]
[381945615,1756433450742,-480.0,0.00052328,120]
[381945616,1756433450754,-5000.0,0.000525,120]
[381945617,1756433450764,-377.75383922,0.00052602,21]
[381945618,1756433450774,-480.0,0.00052602,120]
[381945619,1756433450783,-2301.77,0.00052602,120]
[381945620,1756433450792,-825.86,0.00052602,3]
[381945621,1756433450802,-2397.68,0.00052602,120]
[381945622,1756433450812,-480.0,0.00052602,120]
[381945623,1756433450821,-245.7,0.00052602,120]
[381945624,1756433450831,-835.71,0.00052602,120]
[381945625,1756433450840,-1469.81,0.00052602,120]
[381945626,1756433450850,-480.0,0.00052602,120]
[381945627,1756433450859,-480.0,0.00052602,120]
[381945628,1756433450868,-480.0,0.00052602,120]
[381945629,1756433450878,-480.0,0.00052602,120]
[381945630,1756433450887,-1116.75451227,0.00052664,61]
[381945631,1756433450897,-600.0,0.000528,2]
[381945632,1756433450907,-480.0,0.00052876,120]
[381945633,1756433450916,-2301.77,0.00052876,120]
[381945634,1756433450926,-825.86,0.00052876,3]
[381945635,1756433450935,-2397.68,0.00052876,120]
[381945636,1756433450945,-480.0,0.00052876,120]
[381945637,1756433450955,-835.71,0.00052876,120]
[381945638,1756433450966,-1469.81,0.00052876,120]
[381945639,1756433450977,-480.0,0.00052876,120]
[381945640,1756433450988,-480.0,0.00052876,120]
[381945641,1756433450998,-480.0,0.00052876,120]
[381945642,1756433451008,-480.0,0.00052876,120]
[381945643,1756433451018,-409.0,0.00052883,120]
[381945644,1756433451028,-1000.0,0.00053,120]
[381945645,1756433451037,-169.0,0.00053,120]
[381945646,1756433451047,-1036.47197,0.00053,120]
[381945647,1756433451057,-155.238896,0.000531,2]
[381945648,1756433451066,-153.370832,0.000531,2]
[381945649,1756433451076,-480.0,0.0005315,120]
[381945650,1756433451086,-2301.77,0.0005315,120]
[381945651,1756433451096,-825.86,0.0005315,3]
[381945652,1756433451105,-2397.68,0.0005315,120]
[381945653,1756433451115,-480.0,0.0005315,120]
[381945654,1756433451125,-835.71,0.0005315,120]
[381945655,1756433451135,-1469.81,0.0005315,120]
[381945656,1756433451144,-480.0,0.0005315,120]
[381945657,1756433451154,-480.0,0.0005315,120]
[381945658,1756433451163,-480.0,0.0005315,120]
[381945659,1756433451173,-480.0,0.0005315,120]
[381945660,1756433451183,-155.238896,0.0005324,14]
[381945661,1756433451192,-153.370832,0.0005324,14]
[381945662,1756433451202,-600.0,0.0005335,2]
[381945663,1756433451211,-480.0,0.00053424,120]
[381945664,1756433451221,-2301.77,0.00053424,120]
[381945665,1756433451231,-825.86,0.00053424,3]
[381945666,1756433451241,-2397.68,0.00053424,120]
[381945667,1756433451251,-480.0,0.00053424,120]
[381945668,1756433451261,-835.71,0.00053424,120]
[381945669,1756433451270,-1469.81,0.00053424,120]
[381945670,1756433451279,-480.0,0.00053424,120]
[381945671,1756433451289,-480.0,0.00053424,120]
[381945672,1756433451299,-480.0,0.00053424,120]
[381945673,1756433451308,-480.0,0.00053424,120]
[381945674,1756433451318,-2342.77,0.000535,14]
[381945675,1756433451328,-1000.0,0.000535,120]
[381945676,1756433451337,-2000.0,0.000535,120]
[381945677,1756433451347,-480.0,0.00053698,120]
[381945678,1756433451356,-2301.77,0.00053698,120]
[381945679,1756433451366,-825.86,0.00053698,3]
[381945680,1756433451375,-2397.68,0.00053698,120]
[381945681,1756433451385,-480.0,0.00053698,120]
[381945682,1756433451395,-835.71,0.00053698,120]
[381945683,1756433451404,-1469.81,0.00053698,120]
[381945684,1756433451414,-444.14563407,0.00053698,120]
[381945685,1756433451424,-480.0,0.00053698,120]
[381945686,1756433451433,-480.0,0.00053698,120]
[381945687,1756433451442,-480.0,0.00053698,120]
[381945688,1756433451452,-1833.1208806,0.00053802,120]
[381945689,1756433451462,-600.0,0.000539,2]
[381945690,1756433451471,-480.0,0.00053972,120]
[381945691,1756433451480,-2301.77,0.00053972,120]
[381945692,1756433451491,-825.86,0.00053972,3]
[381945693,1756433451502,-2397.68,0.00053972,120]
[381945694,1756433451515,-480.0,0.00053972,120]
[381945695,1756433451524,-835.71,0.00053972,120]
[381945696,1756433451534,-1469.81,0.00053972,120]
[381945697,1756433451544,-593.79,0.00053972,120]
[381945698,1756433451553,-480.0,0.00053972,120]
[381945699,1756433451562,-247.43,0.00053972,120]
[381945700,1756433451571,-1000.0,0.00054,120]
[381945701,1756433451581,-155.238896,0.00054,7]
[381945702,1756433451590,-153.370832,0.00054,7]
[381945703,1756433451600,-1116.75451227,0.00054153,65]
[381945704,1756433451609,-1700.0,0.00054156,60]
[381945705,1756433451618,-355.95,0.00054246,120]
[381945706,1756433451628,-2301.77,0.00054246,120]
[381945707,1756433451638,-825.86,0.00054246,3]
[381945708,1756433451647,-2397.68,0.00054246,120]
[381945709,1756433451658,-480.0,0.00054246,120]
[381945710,1756433451669,-835.71,0.00054246,120]
[381945711,1756433451678,-1469.81,0.00054246,120]
[381945712,1756433451687,-480.0,0.00054246,120]
[381945713,1756433451698,-3043.88893514,0.000543,120]
[381945714,1756433451709,-601.28053103,0.0005445,2]
[381945715,1756433451720,-2000.0,0.000545,120]
[381945716,1756433451735,-2301.77,0.0005452,120]
[381945717,1756433451746,-825.86,0.0005452,3]
[381945718,1756433451755,-2397.68,0.0005452,120]
[381945719,1756433451765,-480.0,0.0005452,120]
[381945720,1756433451775,-835.71,0.0005452,120]
[381945721,1756433451784,-1469.81,0.0005452,120]
[381945722,1756433451794,-480.0,0.0005452,120]
[381945723,1756433451803,-200.0,0.0005455,120]
[381945724,1756433451812,-151.0,0.00054703,120]
[381945725,1756433451821,-151.0,0.00054703,120]
[381945726,1756433451831,-151.0,0.00054703,120]
[381945727,1756433451840,-151.0,0.00054703,120]
[381945728,1756433451850,-232.303216,0.00054703,120]
[381945729,1756433451859,-151.0,0.00054703,120]
[381945730,1756433451869,-151.0,0.00054703,120]
[381945731,1756433451879,-151.0,0.00054703,120]
[381945732,1756433451888,-151.0,0.00054703,120]
[381945733,1756433451898,-317.803208,0.00054703,120]
[381945734,1756433451907,-317.803208,0.00054703,120]
[381945735,1756433451917,-151.99404,0.00054703,120]
[381945736,1756433451927,-317.803208,0.00054703,120]
[381945737,1756433451937,-317.803208,0.00054703,120]
[381945738,1756433451946,-151.0,0.00054703,120]
[381945739,1756433451956,-151.0,0.00054703,120]
[381945740,1756433451965,-151.0,0.00054703,120]
[381945741,1756433451975,-193.232629,0.00054703,120]
[381945742,1756433451985,-193.232629,0.00054703,120]
[381945743,1756433451994,-193.232629,0.00054703,120]
[381945744,1756433452005,-193.232629,0.00054703,120]
[381945745,1756433452015,-1888.0,0.00054703,60]
[381945746,1756433452026,-1957.856,0.00054703,60]
[381945747,1756433452036,-2030.296672,0.00054703,60]
[381945748,1756433452046,-2105.41764886,0.00054703,60]
[381945749,1756433452056,-2183.31810187,0.00054703,60]
[381945750,1756433452066,-2264.10087164,0.00054703,60]
[381945751,1756433452076,-2347.87260389,0.00054703,60]
[381945752,1756433452086,-2434.74389024,0.00054703,60]
[381945753,1756433452097,-2644.70604767,0.00054703,60]
[381945754,1756433452107,-1700.0,0.00054704,60]
[381945755,1756433452117,-2301.77,0.00054794,120]
[381945756,1756433452127,-825.86,0.00054794,3]
[381945757,1756433452137,-2397.68,0.00054794,120]
[381945758,1756433452147,-393.55644688,0.00054794,120]
[381945759,1756433452156,-835.71,0.00054794,120]
[381945760,1756433452166,-1469.81,0.00054794,120]
[381945761,1756433452175,-480.0,0.00054794,120]
[381945762,1756433452185,-820.29,0.00054794,120]
[381945763,1756433452195,-480.0,0.00054794,120]
[381945764,1756433452204,-480.0,0.00054794,120]
[381945765,1756433452214,-480.0,0.00054794,120]
[381945766,1756433452223,-480.0,0.00054794,120]
[381945767,1756433452233,-480.0,0.00054794,120]
[381945768,1756433452242,-480.0,0.00054794,120]
[381945769,1756433452251,-488.83566574,0.00054794,120]
[381945770,1756433452260,-480.0,0.00054794,120]
[381945771,1756433452270,-480.0,0.00054794,120]
[381945772,1756433452279,-5056.33851342,0.00054799,120]
[381945773,1756433452289,-2563.5300103,0.000549,2]
[381945774,1756433452299,-1000.0,0.00055,120]
[381945775,1756433452308,-2000.0,0.00055,120]
[381945776,1756433452396,-1000.0,0.00055,120]
[381945777,1756433452414,-4616.84574561,0.00055,120]
[381945778,1756433452423,-153.0,0.00055,120]
[381945779,1756433452433,-151.0,0.00055068,120]
[381945780,1756433452442,-151.0,0.00055068,120]
[381945781,1756433452451,-151.431384,0.00055068,120]
[381945782,1756433452460,-151.0,0.00055068,120]
[381945783,1756433452469,-151.0,0.00055068,120]
[381945784,1756433452479,-151.0,0.00055068,120]
[381945785,1756433452487,-2301.77,0.00055068,120]
[381945786,1756433452498,-825.86,0.00055068,3]
[381945787,1756433452507,-2397.68,0.00055068,120]
[381945788,1756433452520,-835.71,0.00055068,120]
[381945789,1756433452530,-1469.81,0.00055068,120]
[381945790,1756433452539,-480.0,0.00055068,120]
[381945791,1756433452548,-820.29,0.00055068,120]
[381945792,1756433452557,-480.0,0.00055068,120]
[381945793,1756433452567,-480.0,0.00055068,120]
[381945794,1756433452575,-480.0,0.00055068,120]
[381945795,1756433452584,-480.0,0.00055068,120]
[381945796,1756433452593,-480.0,0.00055068,120]
[381945797,1756433452602,-480.0,0.00055068,120]
[381945798,1756433452611,-603.9,0.00055068,120]
[381945799,1756433452620,-480.0,0.00055068,120]
[381945800,1756433452629,-1700.0,0.00055252,120]
[381945801,1756433452638,-151.0,0.00055342,120]
[381945802,1756433452647,-151.0,0.00055342,120]
[381945803,1756433452657,-174.986321,0.00055342,120]
[381945804,1756433452669,-151.0,0.00055342,120]
[381945805,1756433452678,-151.0,0.00055342,120]
[381945806,1756433452687,-151.0,0.00055342,120]
[381945807,1756433452696,-151.0,0.00055342,120]
[381945808,1756433452706,-152.059112,0.00055342,120]
[381945809,1756433452716,-151.0,0.00055342,120]
[381945810,1756433452725,-151.829163,0.00055342,90]
[381945811,1756433452735,-151.0,0.00055342,120]
[381945812,1756433452744,-2301.77,0.00055342,120]
[381945813,1756433452755,-825.86,0.00055342,3]
[381945814,1756433452763,-2397.68,0.00055342,120]
[381945815,1756433452772,-835.71,0.00055342,120]
[381945816,1756433452782,-1469.81,0.00055342,120]
[381945817,1756433452791,-480.0,0.00055342,120]
[381945818,1756433452800,-820.29,0.00055342,120]
[381945819,1756433452809,-480.0,0.00055342,120]
[381945820,1756433452818,-480.0,0.00055342,120]
[381945821,1756433452827,-480.0,0.00055342,120]
[381945822,1756433452836,-480.0,0.00055342,120]
[381945823,1756433452846,-498.30643502,0.00055342,120]
[381945824,1756433452855,-480.0,0.00055342,120]
[381945825,1756433452864,-480.0,0.00055342,120]
[381945826,1756433452873,-1000.0,0.000555,120]
[381945827,1756433452882,-2301.8422638,0.00055616,120]
[381945828,1756433452892,-825.95835126,0.00055616,3]
[381945829,1756433452901,-2397.73168066,0.00055616,120]
[381945830,1756433452911,-835.89185583,0.00055616,120]
[381945831,1756433452920,-1469.94700153,0.00055616,120]
[381945832,1756433452929,-358.43919037,0.00055616,120]
[381945833,1756433452939,-820.29,0.00055616,120]
[381945834,1756433452948,-580.53903703,0.00055616,120]
[381945835,1756433452958,-510.75144699,0.00055616,120]
[381945836,1756433452967,-480.0,0.00055616,120]
[381945837,1756433452976,-480.0,0.00055616,120]
[381945838,1756433452986,-1116.75451227,0.00055642,68]
[381945839,1756433452995,-1700.0,0.000558,120]
[381945840,1756433453005,-409.0,0.00055883,120]
[381945841,1756433453015,-820.29,0.0005589,120]
[381945842,1756433453024,-480.0,0.0005589,120]
[381945843,1756433453034,-480.0,0.0005589,120]
[381945844,1756433453043,-161.34508116,0.00055944,120]
[381945845,1756433453053,-271.21,0.00055999,120]
[381945846,1756433453063,-271.21,0.00055999,120]
[381945847,1756433453072,-1000.0,0.00056,120]
[381945848,1756433453082,-3000.0,0.00056,120]
[381945849,1756433453091,-155.238896,0.00056,60]
[381945850,1756433453100,-153.370832,0.00056,60]
[381945851,1756433453110,-150.0,0.00056,120]
[381945852,1756433453119,-152.958021,0.00056,120]
[381945853,1756433453128,-151.0,0.00056,120]
[381945854,1756433453138,-151.0,0.00056,120]
[381945855,1756433453148,-151.0,0.00056,120]
[381945856,1756433453157,-151.0,0.00056,120]
[381945857,1756433453166,-151.0,0.00056,120]
[381945858,1756433453175,-990.48094778,0.00056,120]
[381945859,1756433453185,-67163.66466207,0.00056,120]
[381945860,1756433453202,-444.21167974,0.00056,120]
[381945870,1756434332372,172.107247,0.00013699,2]
[381945873,1756434483715,1300.89486147,0.00030349,120]
[381945874,1756434493095,6097.70740764,0.00030349,120]
[381945875,1756434506391,154.9363227,0.00030349,120]
[381945876,1756434514209,221.28040458,0.00030349,120]
[381945877,1756434522938,1096.41959957,0.00030349,120]
[381945878,1756434527541,150.34362068,0.00030349,120]
[381945879,1756434530570,491.44080026,0.00030349,120]
[381945880,1756434545159,-257.62643834,0.000199,2]
[381945881,1756434545180,-160.0,0.0002,3]
[381945882,1756434545201,-160.0,0.0002,3]
[381945883,1756434545223,-160.0,0.0002,7]
[381945884,1756434545244,-160.0,0.0002,3]
[381945885,1756434545264,-6579.09041627,0.00021,5]
[381945886,1756434545285,-324.05624537,0.00021,2]
[381945887,1756434545309,-257.62643825,0.00021389,2]
[381945888,1756434545330,-300.0,0.00021499,2]
[381945889,1756434545352,-3160.96134702,0.000215,2]
[381945890,1756434545373,-613.03801579,0.000217,2]
[381945891,1756434545397,-257.62643825,0.00022879,2]
[381945892,1756434545417,-259.13493559,0.00023,2]
[381945893,1756434545437,-10994.74452635,0.0002301,5]
[381945894,1756434545457,-47240.43938534,0.00024,5]
[381945895,1756434545478,-3028.49742416,0.00024,30]
[381945896,1756434545499,-425.57542551,0.00024185,2]
[381945897,1756434545520,-4113.45267338,0.00024189,2]
[381945898,1756434545541,-1200.0,0.00024233,2]
[381945899,1756434545680,-633.72,0.00024234,10]
[381945900,1756434545701,-300.0,0.00024235,2]
[381945901,1756434545721,-300.0,0.00024235,2]
[381945902,1756434545741,-12500.0,0.00024236,7]
[381945903,1756434545761,-160.0,0.00024236,7]
[381945904,1756434545782,-160.0,0.00024236,7]
[381945905,1756434545802,-845.57753514,0.00024236,7]
[381945906,1756434545822,-425.57542551,0.00024236,7]
[381945907,1756434545842,-160.0,0.00024236,7]
[381945908,1756434545861,-232.6790651,0.00024236,7]
[381945909,1756434545881,-216.21406313,0.00024236,7]
[381945910,1756434545901,-217.30324474,0.00024236,7]
[381945911,1756434545920,-12500.0,0.00024244,7]
[381945912,1756434545943,-257.62643825,0.00024368,2]
[381945913,1756434545964,-58645.76815271,0.0002465,2]
[381945914,1756434554168,-22282.47396872,0.0002465,2]
[381945915,1756434556320,-75454.64314772,0.0002465,2]
[381945916,1756434564165,-718.93,0.0002464,10]
[381945917,1756434564192,-136081.5632882,0.0002465,2]
[381945937,1756434632348,-160.0,0.00024236,7]
[381945938,1756434632359,-1200.0,0.00024649,2]
[381945939,1756434632370,-300.0,0.00024649,2]
[381945940,1756434632380,-19122.00783633,0.0002465,2]
[381945941,1756434632390,-380.0,0.00024658,2]
[381945942,1756434632400,-4202.58851256,0.00024774,2]
[381945943,1756434632410,-348.187,0.00024887,8]
[381945944,1756434632419,-257.62643825,0.00025857,4]
[381945945,1756434632430,-417.15472785,0.00027,3]
[381945946,1756434632439,-417.15472785,0.00027,7]
[381945947,1756434632449,-417.15472785,0.00027,3]
[381945948,1756434632459,-257.62643825,0.00027346,7]
[381945949,1756434632469,-172.107247,0.00027397,2]